fUST/lending_fUST_20240104
["ID","MTS","AMOUNT","RATE_DAILY","PERIOD"]
[310085893,1704310239268,-161.10240117,0.00022328,2]
[310085895,1704310239281,-161.10240117,0.00022329,2]
[310085897,1704310239290,-161.10240117,0.0002233,2]
[310085906,1704310239366,-166.666666,0.00022431,2]
[310085908,1704310239376,-482.58324239,0.00022439,2]
[310085910,1704310239386,-166.666666,0.00022944,2]
[310085912,1704310239396,-166.666666,0.00023456,2]
[310085914,1704310239406,-4325.39449076,0.00023592,2]
[310085917,1704310239415,-334.91209912,0.00023604,2]
[310085919,1704310239424,-166.666666,0.00023969,2]
[310085921,1704310239433,-2430.28294508,0.00024,2]
[310085923,1704310239442,-3207.83382699,0.00024,2]
[310085925,1704310239451,-200.0,0.00024237,7]
[310085926,1704310239459,-152.739999,0.0002435,3]
[310085928,1704310239468,-166.666666,0.00024482,2]
[310085930,1704310239478,-155.23850399,0.00025,2]
[310085932,1704310239487,-1002.99295177,0.00025,2]
[310085934,1704310239496,-612.96786415,0.00025,2]
[310085936,1704310239505,-4703.58483279,0.00025,2]
[310085938,1704310239515,-2481.12619407,0.00025,2]
[310085940,1704310239524,-8463.76051474,0.00025034,2]
[310085942,1704310239534,-193.27845609,0.00025422,2]
[310085944,1704310239542,-200.0,0.00025479,2]
[310085946,1704310239552,-524.98429826,0.00026,2]
[310085948,1704310239561,-280.0,0.00026661,15]
[310085950,1704310239571,-233.4137136,0.00026765,2]
[310085952,1704310239580,-154.90700632,0.00026792,2]
[310085955,1704310239590,-155.11189304,0.00026792,2]
[310085956,1704310239599,-173.94845341,0.0002767,2]
[310085958,1704310239608,-155.53118392,0.00027671,2]
[310085960,1704310239617,-301.14245038,0.00027673,2]
[310085963,1704310239626,-781.90839515,0.00028,2]
[310085965,1704310239636,-344.31973606,0.00028,2]
[310085967,1704310239645,-391.0,0.00029327,15]
[310085969,1704310239654,-1320.81396188,0.000297,2]
[310085971,1704310239663,-496.05871971,0.000298,5]
[310085973,1704310239672,-345.41571198,0.0003,4]
[310085974,1704310239681,-155.0,0.0003,2]
[310085977,1704310239690,-7025.05114454,0.0003,4]
[310085978,1704310239700,-6534.9223021,0.0003,4]
[310085980,1704310239709,-685.36830863,0.0003,4]
[310085982,1704310239718,-638.44894353,0.0003,4]
[310085984,1704310239727,-154.84515485,0.0003,4]
[310085986,1704310239736,-155.18994402,0.0003,30]
[310085988,1704310239746,-200.0,0.0003226,15]
[310085990,1704310239755,-348.0,0.0003226,15]
[310085993,1704310239765,-246.06986126,0.00033,4]
[310085995,1704310239775,-4657.66153763,0.00034,2]
[310085997,1704310239784,-1000.0,0.00034,7]
[310085999,1704310239793,-163.030937,0.00034521,2]
[310086001,1704310239802,-500.0,0.00034999,2]
[310086003,1704310239811,-500.0,0.00034999,2]
[310086005,1704310239820,-351.58270442,0.00034999,2]
[310086006,1704310239829,-223.06420937,0.00034999,2]
[310086008,1704310239839,-1454.45537407,0.00035,14]
[310086011,1704310239848,-4177.42015254,0.00035,4]
[310086012,1704310239858,-3612.63555754,0.00035,2]
[310086014,1704310239870,-584.41286268,0.00035,2]
[310086026,1704310239988,7788.1,0.00022016,3]
[310086056,1704310240256,399.38718748,0.00022022,2]
[310086131,1704310240931,7544.16505711,0.00022022,2]
[310086206,1704310241652,-166.16362772,0.00022023,2]
[310086208,1704310241662,-230.12748224,0.00022023,2]
[310086210,1704310241671,-605.16831392,0.00022023,2]
[310086330,1704310242954,154.84515485,0.00021913,2]
[310086442,1704310244084,421.85118936,0.00021928,2]
[310086672,1704310246424,-250.55060294,0.00022023,2]
[310086679,1704310246484,-1948.82214494,0.00022023,2]
[310086681,1704310246493,-2997.40556678,0.00022023,2]
[310086683,1704310246503,-1570.71329593,0.00022023,2]
[310086684,1704310246514,-3628.50656083,0.00022023,2]
[310086686,1704310246524,-314.62636474,0.00022023,2]
[310086695,1704310246605,-641.96499442,0.00022023,2]
[310086697,1704310246616,-466.12469227,0.00022023,2]
[310086698,1704310246626,-137.77054862,0.00022023,2]
[310086719,1704310246846,5938.79112663,0.00019821,2]
[310086914,1704310252555,263.90159231,0.00022016,2]
[310086915,1704310293836,245.62976884,0.00022022,2]
[310086916,1704310302551,284.52323119,0.00022022,2]
[310086917,1704310303829,154.84515485,0.00022022,2]
[310086918,1704310320727,176.37293722,0.00022022,2]
[310086919,1704310321154,154.84515485,0.00022022,2]
[310086920,1704310322314,154.84515485,0.00022022,2]
[310086921,1704310337143,155.78943376,0.00022022,2]
[310086922,1704310378194,154.8830599,0.00022022,2]
[310086923,1704310438974,154.84515485,0.00022022,2]
[310086924,1704310494096,4507.0,0.00022013,3]
[310086925,1704310498986,309.61298454,0.00022022,2]
[310086926,1704310504911,230.12748224,0.00022022,2]
[310086927,1704310507931,164.65816911,0.00022022,2]
[310086928,1704310510359,1019.46116191,0.00022022,2]
[310086929,1704310516520,260.53076677,0.00022022,2]
[310086930,1704310519430,466.12469227,0.00022022,2]
[310086931,1704310531704,605.76569504,0.00022022,2]
[310086932,1704310534818,343.43501932,0.00022022,2]
[310086933,1704310539878,924.18644533,0.00022022,2]
[310086934,1704310542398,154.84515485,0.00022022,4]
[310086935,1704310543450,154.84515485,0.00022022,2]
[310086936,1704310546768,154.84515485,0.00022022,2]
[310086937,1704310549192,154.84515485,0.00022022,2]
[310086938,1704310549249,154.84515485,0.00022022,2]
[310086939,1704310549344,590.516407,0.00022022,2]
[310086940,1704310549874,451.07921998,0.00022022,2]
[310086941,1704310553429,559.68125324,0.00022022,2]
[310086942,1704310554273,264.48060354,0.00022022,2]
[310086943,1704310554874,873.72208253,0.00022022,2]
[310086944,1704310554941,520.2185,0.00022022,2]
[310086945,1704310555158,1584.80241164,0.00022022,2]
[310086946,1704310559097,404.97657423,0.00022022,2]
[310086947,1704310562863,321.94449774,0.00022022,2]
[310086948,1704310565413,15085.71125601,0.00021895,2]
[310086949,1704310575055,-204.12948514,0.00021056,2]
[310086950,1704310575177,-4.16590786,0.00021056,2]
[310086951,1704310691379,-924.18644533,0.00021055,2]
[310086952,1704310691409,-135.82384417,0.00021056,2]
[310086953,1704310691671,-21.63286305,0.00021056,2]
[310086954,1704310692355,154.84515485,0.00021055,2]
[310086955,1704310696371,-255.32015143,0.00021054,2]
[310086956,1704310696618,-5.21061534,0.00021054,2]
[310086957,1704310697874,250.10953609,0.00021054,2]
[310086958,1704310697902,71.83496165,0.00021054,2]
[310086959,1704310748878,-2034.55231233,0.00021054,2]
[310086960,1704310749005,-41.52147576,0.00021054,2]
[310086961,1704310768873,-384.34064552,0.00021054,2]
[310086962,1704310769159,-7.84368664,0.00021054,2]
[310086963,1704310789409,174.513544,0.00020498,2]
[310086964,1704310861844,460.19779524,0.00021742,20]
[310086965,1704310863768,11109.1894143,0.00020752,2]
[310086966,1704310875825,447.11026682,0.0002175,20]
[310086967,1704310884908,370.12415487,0.00021,2]
[310086968,1704310920230,80180.27880485,0.00020498,2]
[310086969,1704310963809,353.3116885,0.00020716,2]
[310086970,1704310970981,2855.495211,0.00020715,2]
[310086971,1704310971487,2855.495211,0.00020715,2]
[310086972,1704310972004,2855.495211,0.00020715,2]
[310086973,1704310972377,2855.495211,0.00020715,2]
[310086974,1704310972912,2855.495211,0.00020715,2]
[310086975,1704310982838,1819.06283426,0.00021,2]
[310086976,1704310983370,2926.0490301,0.00020498,2]
[310086977,1704310988143,9310.18993866,0.00020498,2]
[310086978,1704310994192,51899.44131824,0.00020498,2]
[310086979,1704310998844,1189.19091868,0.00021,2]
[310086980,1704311024804,10129.9455768,0.00020737,2]
[310086981,1704311041703,268.6781661,0.0002,2]
[310086982,1704311073377,-2027.03693589,0.00021507,2]
[310086983,1704311073399,-520.2185,0.00021507,2]
[310086984,1704311073421,-1938.74456411,0.00021507,2]
[310086985,1704311093404,346.63904701,0.0002,2]
[310086986,1704311096656,547.66842891,0.0002,2]
[310086987,1704311114517,5495.63534967,0.00020226,2]
[310086989,1704311140000,467.395088,0.00020737,2]
[310086990,1704311142054,-254.91008809,0.00021489,2]
[310086991,1704311142081,-26377.44033991,0.00021489,2]
[310086992,1704311142105,-178.24808117,0.0002149,2]
[310086993,1704311142138,-154.84515485,0.0002149,2]
[310086994,1704311142167,-10477.01854936,0.0002149,2]
[310086995,1704311142205,-924.18644533,0.0002149,2]
[310086996,1704311142255,-7932.20562033,0.0002149,2]
[310086997,1704311142297,-166.32510416,0.00021491,2]
[310086998,1704311142324,-2508.36986414,0.00021491,2]
[310086999,1704311142370,-2990.08384051,0.00021491,2]
[310087000,1704311142399,-1193.2978632,0.00021491,2]
[310087001,1704311142433,-230.12748224,0.00021491,2]
[310087002,1704311142469,-2804.5410618,0.00021491,2]
[310087003,1704311142499,-2704.45519417,0.00021492,2]
[310087004,1704311142537,-19682.94531074,0.00021492,2]
[310087005,1704311166267,5744.03834351,0.00020226,2]
[310087006,1704311166314,56941.57525826,0.00020226,2]
[310087007,1704311166394,35972.08789983,0.00020226,2]
[310087013,1704311219234,-1024.54346754,0.00020645,2]
[310087014,1704311219394,-20.90905036,0.00020645,2]
[310087015,1704311239222,5000.0,0.0002047,2]
[310087016,1704311246982,-944.51958651,0.00020643,2]
[310087017,1704311247010,-132.85786002,0.00020644,2]
[310087018,1704311247078,-21.98729483,0.00020644,2]
[310087019,1704311263458,186.234443,0.00020192,2]
[310087020,1704311263721,-154.84515485,0.00020641,2]
[310087021,1704311263750,-169.67356098,0.00020642,2]
[310087022,1704311263926,-6.62283094,0.00020642,2]
[310087023,1704311271279,-164.65816911,0.00020641,2]
[310087024,1704311271315,-171.38995616,0.00020642,2]
[310087025,1704311271354,-6.85812501,0.00020642,2]
[310087026,1704311271388,-230.12748224,0.00020642,2]
[310087027,1704311271485,99.06251802,0.00020642,2]
[310087028,1704311271518,336.04812527,0.00020642,2]
[310087029,1704311271556,-561.57305787,0.00020642,2]
[310087030,1704311271626,-561.57305787,0.00020642,2]
[310087031,1704311271844,-17.95177654,0.00020642,2]
[310087032,1704311273007,675.8919533,0.0002064,2]
[310087033,1704311276170,-578.70607886,0.00020641,2]
[310087034,1704311276316,-11.81032814,0.00020641,2]
[310087035,1704311276345,-466.12469227,0.00020641,2]
[310087036,1704311277197,100.77105845,0.00020641,2]
[310087037,1704311277237,54.0740964,0.00020641,2]
[310087038,1704311277461,524.63198246,0.00020641,2]
[310087039,1704311277495,399.55446287,0.00020641,2]
[310087040,1704311277535,179.15161599,0.00020641,2]
[310087041,1704311277566,70.76245638,0.00020641,2]
[310087042,1704311277872,-154.84515485,0.00020643,4]
[310087043,1704311277902,-328.2954028,0.00021,2]
[310087044,1704311278866,744.29165352,0.00020641,2]
[310087045,1704311278897,321.72949474,0.00020641,2]
[310087046,1704311278929,321.72949474,0.00020641,2]
[310087047,1704311278964,321.72949474,0.00020641,2]
[310087048,1704311278997,397.61386362,0.00020641,2]
[310087049,1704311279027,468.37632,0.00020641,2]
[310087050,1704311279058,-128.98487281,0.00020641,2]
[310087051,1704311279094,350.01512719,0.00020642,2]
[310087052,1704311279500,-209.66612605,0.00020642,2]
[310087053,1704311282939,873.72208253,0.0002064,2]
[310087054,1704311283343,1047.23818731,0.0002064,2]
[310087055,1704311283678,-1942.8456532,0.0002064,2]
[310087056,1704311288387,-2748.45024056,0.00020639,2]
[310087057,1704311288523,-56.09082124,0.00020639,2]
[310087058,1704311288553,-2692.35941932,0.00020639,2]
[310087059,1704311288656,-780.37065738,0.00020639,2]
[310087060,1704311291897,154.84515485,0.00019312,3]
[310087061,1704311293641,8686.83250232,0.00020459,2]
[310087062,1704311293671,16213.16749768,0.00020459,2]
[310087063,1704311302056,-746.07691516,0.00021361,2]
[310087064,1704311302113,-394.5029323,0.00021361,2]
[310087065,1704311305142,-220.5623413,0.0002064,2]
[310087066,1704311305171,-1479.87836743,0.00021029,2]
[310087067,1704311305204,-255.26521291,0.00021029,2]
[310087068,1704311309900,154.84515485,0.00019312,3]
[310087069,1704311310629,-3658.09042711,0.00021028,2]
[310087070,1704311310769,-74.65490668,0.00021028,2]
[310087071,1704311310798,-2631.68489228,0.00021028,2]
[310087072,1704311326956,-322.38366746,0.00021358,2]
[310087073,1704311326990,-369.22605694,0.00021359,2]
[310087074,1704311327021,-77.27878771,0.0002136,2]
[310087075,1704311327057,-681.48704361,0.0002136,2]
[310087076,1704311331899,154.84515485,0.00019222,3]
[310087077,1704311339282,-1218.79345788,0.00021,2]
[310087078,1704311339378,-24.87333587,0.00021,2]
[310087079,1704311344749,-154.84515485,0.00020999,2]
[310087080,1704311344779,-183.81164539,0.00020999,2]
[310087081,1704311344871,-6.91136327,0.00020999,2]
[310087082,1704311351910,154.84515485,0.00019221,3]
[310087083,1704311352288,-797.89602323,0.00021348,2]
[310087084,1704311352343,-636.69021093,0.00021348,2]
[310087085,1704311370406,154.84515485,0.00019221,3]
[310087086,1704311376938,-205.16820081,0.00021247,2]
[310087087,1704311376966,-621.4195471,0.00021339,2]
[310087088,1704311378488,-267.39013661,0.00021339,2]
[310087089,1704311394492,11.82151115,0.00019209,3]
[310087090,1704311394521,143.0236437,0.00019209,3]
[310087091,1704311401946,-848.4673056,0.00021333,2]
[310087092,1704311401996,-250.27278528,0.00021333,2]
[310087093,1704311414416,154.84515485,0.00019202,3]
[310087094,1704311428966,154.84515485,0.00019197,3]
[310087152,1704311435353,-3321.14,0.00021322,3]
[310087154,1704311435362,-3985.36,0.00021323,3]
[310087164,1704311435439,-154.84515485,0.00021326,2]
[310087167,1704311435470,-2031.60443603,0.00021326,2]
[310087169,1704311435480,-1288.93040301,0.00021326,2]
[310087170,1704311435489,-2804.5410618,0.00021326,2]
[310087172,1704311435499,-590.516407,0.00021326,2]
[310087173,1704311435509,-4431.99090233,0.00021326,2]
[310087175,1704311435518,-55513.21882612,0.00021326,2]
[310087206,1704311438699,-22737.75483169,0.00021326,2]
[310087208,1704311438715,-1584.80241164,0.00021327,2]
[310087209,1704311438725,-1019.46116191,0.00021327,2]
[310087210,1704311438735,-1997.59159479,0.00021327,2]
[310087211,1704311440066,-992.49224572,0.00021327,2]
[310087212,1704311440173,-900.11478533,0.00021331,2]
[310087213,1704311440186,-675.8919533,0.00021331,2]
[310087214,1704311440196,-87.6653618,0.00021331,2]
[310087215,1704311440208,-836.52108353,0.00021331,2]
[310087216,1704311440218,-2187.8018764,0.00021332,2]
[310087217,1704311440230,-516.65331777,0.00021332,2]
[310087218,1704311440239,-3266.63299965,0.00021332,2]
[310087219,1704311440251,-16365.57565275,0.00021332,2]
[310087220,1704311440260,-466.12469227,0.00021332,2]
[310087221,1704311440269,-20831.85137104,0.00021332,2]
[310087222,1704311440278,-154.84515485,0.00021332,2]
[310087223,1704311440288,-991.41128614,0.00021333,2]
[310087224,1704311440297,-559.68125324,0.00021333,2]
[310087225,1704311440307,-1576.20853557,0.00021333,2]
[310087226,1704311440316,-15856.05933973,0.00021333,2]
[310087227,1704311440326,-5076.05878035,0.00021334,2]
[310087228,1704311440335,-154.84515485,0.00021334,2]
[310087229,1704311440345,-7853.18847264,0.00021334,2]
[310087230,1704311440355,-155.12945128,0.00021336,2]
[310087231,1704311440364,-321.94449774,0.00021337,2]
[310087232,1704311440376,-944.51958651,0.00021337,2]
[310087233,1704311440385,-360.177092,0.00021338,2]
[310087234,1704311440394,-3732.74533379,0.00021338,2]
[310087235,1704311440403,-26377.44033991,0.00021338,2]
[310087236,1704311440413,-2631.68489228,0.00021338,2]
[310087237,1704311440422,-7932.20562033,0.00021338,2]
[310087238,1704311440431,-36770.35479684,0.00021345,2]
[310087239,1704311440440,-965.33045955,0.00021345,2]
[310087240,1704311440449,-291.27045953,0.00021357,2]
[310087241,1704311440459,-425.41783249,0.00021357,2]
[310087242,1704311440469,-293.54892013,0.00021357,2]
[310087243,1704311440478,-171.9982816,0.00021364,2]
[310087244,1704311440487,-154.96895978,0.00021458,2]
[310087245,1704311440497,-328.06492861,0.00021458,2]
[310087246,1704311440506,-250.52940106,0.00021458,2]
[310087247,1704311440515,-1734.34211695,0.00021458,2]
[310087248,1704311440525,-872.83521789,0.00021458,2]
[310087249,1704311440534,-432.28762746,0.00021458,2]
[310087250,1704311440544,-514.86978996,0.00021458,2]
[310087251,1704311440553,-264.48019499,0.00021458,2]
[310087252,1704311440562,-223.69711736,0.00021458,2]
[310087253,1704311440571,-239.48878468,0.00021459,2]
[310087254,1704311440581,-233.19265797,0.00021459,2]
[310087255,1704311440590,-215.4809034,0.0002146,2]
[310087256,1704311440599,-188.38999973,0.0002146,2]
[310087257,1704311440608,-155.92702474,0.00021463,2]
[310087258,1704311440618,-249.7306379,0.0002149,2]
[310087259,1704311440629,-322.07473132,0.00021491,2]
[310087260,1704311440639,-530.77463509,0.00021501,2]
[310087261,1704311440648,-265.80201731,0.00021501,2]
[310087262,1704311440657,-4005.32860183,0.00021501,2]
[310087263,1704311440667,-194.7075,0.00021595,2]
[310087264,1704311440677,-694.81174518,0.00021603,2]
[310087265,1704311440690,-160.57105795,0.0002174,2]
[310087267,1704311440699,-288.7480981,0.0002175,2]
[310087269,1704311440709,-154.8915759,0.0002175,2]
[310087271,1704311440718,-13669.99879992,0.0002175,2]
[310087273,1704311440728,-162.44234547,0.0002175,2]
[310087275,1704311440738,-154.8915759,0.0002175,2]
[310087277,1704311440747,-378.83046646,0.00021869,2]
[310087278,1704311440756,-284.02390707,0.00021875,2]
[310087280,1704311440766,-2097.15281013,0.00021889,2]
[310087282,1704311440775,-468.93451344,0.00021889,2]
[310087284,1704311440784,-2067.23046819,0.00021889,2]
[310087286,1704311440794,-1051.21541603,0.0002189,7]
[310087288,1704311440803,-886.210094,0.00021895,5]
[310087291,1704311440812,-166.666666,0.00021918,2]
[310087294,1704311440821,-156.60017086,0.00022,2]
[310087295,1704311440830,-166.666666,0.00022431,2]
[310087296,1704311440839,-355.34821973,0.00022893,2]
[310087297,1704311440849,-166.666666,0.00022944,2]
[310087298,1704311440858,-166.666666,0.00023456,2]
[310087299,1704311440867,-200.0,0.0002348,7]
[310087300,1704311440879,-166.666666,0.00023969,2]
[310087301,1704311440888,-3385.202222,0.00024,2]
[310087302,1704311440898,-166.666666,0.00024482,2]
[310087303,1704311440907,-182.70291488,0.0002499,2]
[310087304,1704311440916,-183.74665403,0.0002499,2]
[310087305,1704311440925,-156.13594502,0.0002499,2]
[310087306,1704311440934,-309.56660676,0.0002499,2]
[310087307,1704311440944,-526.24128442,0.0002499,2]
[310087308,1704311440953,-155.23390359,0.00025,2]
[310087309,1704311440962,-612.96786415,0.00025,2]
[310087310,1704311440973,-4703.58483279,0.00025,2]
[310087311,1704311440983,-3000.0,0.00025,2]
[310087312,1704311440992,-5495.63534967,0.00025226,2]
[310087313,1704311441002,-200.0,0.00025479,2]
[310087314,1704311441011,-280.0,0.00025827,7]
[310087315,1704311441021,-524.98429826,0.00026,2]
[310087316,1704311441030,-1106.11088374,0.00027191,2]
[310087317,1704311441039,-344.31973606,0.00028,2]
[310087318,1704311441048,-781.90839515,0.00028,2]
[310087319,1704311441058,-391.0,0.0002841,15]
[310087320,1704311441067,-644.30554419,0.00028551,2]
[310087321,1704311441077,-1320.81396188,0.000297,2]
[310087322,1704311441086,-685.36830863,0.0003,4]
[310087323,1704311441095,-6534.9223021,0.0003,4]
[310087324,1704311441104,-171.0,0.0003,2]
[310087325,1704311441113,-5495.63534967,0.00030226,2]
[310087326,1704311441123,-467.395088,0.00031105,2]
[310087327,1704311441132,-200.0,0.00031251,15]
[310087328,1704311441141,-348.0,0.00031251,15]
[310087329,1704311441150,-316.99418714,0.00031999,2]
[310087330,1704311441159,-545.22887981,0.00031999,2]
[310087331,1704311441169,-351.58270442,0.00031999,2]
[310087332,1704311441178,-500.0,0.00031999,2]
[310087333,1704311441187,-500.0,0.00031999,2]
[310087334,1704311441196,-622.13918038,0.00032,2]
[310087335,1704311441205,-174.5977852,0.00032522,2]
[310087336,1704311441215,-171.0,0.00034,2]
[310087337,1704311441224,-1000.0,0.00034,7]
[310087338,1704311441234,-4657.66153763,0.00034,2]
[310087339,1704311441243,-200.0,0.00034376,15]
[310087340,1704311441253,-200.0,0.00034376,15]
[310087341,1704311441262,-368.0,0.00034376,15]
[310087342,1704311441272,-1734.391538,0.00034521,2]
[310087343,1704311441281,-155.4858064,0.00035,4]
[310087344,1704311441290,-590.27084275,0.00035,2]
[310087345,1704311441300,-3538.7366841,0.00035,2]
[310087346,1704311441309,-1454.45537407,0.00035,14]
[310087347,1704311441318,-4177.42015254,0.00035,4]
[310087348,1704311441327,-395.0,0.00035452,2]
[310087349,1704311441336,-46978.44184389,0.000355,14]
[310087350,1704311441346,-519.832385,0.00035616,120]
[310087351,1704311441355,-1734.391538,0.00035798,2]
[310087352,1704311441365,-232.57470138,0.000359,4]
[310087353,1704311441377,-229.99225833,0.00036,4]
[310087354,1704311441388,-171.0,0.00037,2]
[310087355,1704311441398,-1734.391538,0.00037075,2]
[310087356,1704311441407,-200.0,0.00037814,15]
[310087357,1704311441416,-200.0,0.00037814,15]
[310087358,1704311441425,-200.0,0.00037814,15]
[310087359,1704311441435,-200.0,0.00037814,15]
[310087360,1704311441444,-275.0,0.00037814,15]
[310087361,1704311441453,-1037.00033896,0.00037998,4]
[310087362,1704311441463,-495.36101999,0.00038,120]
[310087363,1704311441473,-76018.43398011,0.00038,30]
[310087364,1704311441481,-150.83408251,0.00038339,2]
[310087365,1704311441490,-1734.391538,0.00038352,2]
[310087366,1704311441499,-500.0,0.00038356,2]
[310087367,1704311441508,-445.0,0.0003874,2]
[310087368,1704311441517,-331.205838,0.0003874,2]
[310087369,1704311441527,-331.205838,0.0003874,2]
[310087370,1704311441536,-301.66816502,0.00038984,4]
[310087371,1704311441546,-252.98013591,0.00039,4]
[310087372,1704311441555,-1000.0,0.00039,39]
[310087373,1704311441565,-223.55,0.0003927,60]
[310087374,1704311441575,-150.0,0.0003927,60]
[310087375,1704311441584,-150.0,0.0003928,60]
[310087376,1704311441593,-150.0,0.0003928,60]
[310087377,1704311441602,-150.0,0.0003929,60]
[310087378,1704311441611,-150.0,0.0003929,60]
[310087379,1704311441621,-464.94485982,0.00039341,3]
[310087380,1704311441632,-174.79013702,0.00039341,2]
[310087381,1704311441643,-15044.10591083,0.00039341,2]
[310087384,1704311441719,-201.39876254,0.00039341,2]
[310087386,1704311441730,-2757.90792521,0.00039355,2]
[310087387,1704311441739,-995.89325217,0.00039361,2]
[310087388,1704311441748,-1734.391538,0.0003963,2]
[310087389,1704311441759,-603.33633004,0.00039639,7]
[310087390,1704311441768,-302.0588776,0.00039814,2]
[310087392,1704311441777,-6943.88211968,0.00039814,2]
[310087393,1704311441788,-1735.97052992,0.00039814,2]
[310087394,1704311441798,-208.51990095,0.00039814,2]
[310087395,1704311441807,-171.18407851,0.00039822,2]
[310087396,1704311441816,-1040.03319913,0.00039822,2]
[310087397,1704311441826,-312.00995974,0.00039822,2]
[310087398,1704311441836,-926.82070544,0.00039831,2]
[310087399,1704311441845,-161.39179885,0.00039831,2]
[310087400,1704311441855,-4031.97114424,0.0003999,4]
[310087401,1704311441864,-154.84515485,0.0004,4]
[310087402,1704311441874,-1278.30335464,0.0004,4]
[310087403,1704311441883,-166.81042853,0.00040305,4]
[310087404,1704311441893,-156.70612431,0.00040406,4]
[310087405,1704311441902,-2937.62973098,0.00040406,4]
[310087406,1704311441912,-1206.67266007,0.00040642,30]
[310087407,1704311441921,-1339.0,0.00040787,33]
[310087408,1704311441931,-435.84314857,0.00040789,4]
[310087409,1704311441940,-500.0,0.00040789,4]
[310087410,1704311441950,-500.0,0.00040789,4]
[310087411,1704311441960,-505.3227688,0.00040789,4]
[310087412,1704311441970,-180.83399236,0.00040789,4]
[310087413,1704311441979,-500.0,0.00040789,4]
[310087414,1704311441989,-407.17418931,0.00040789,4]
[310087415,1704311441998,-556.38684566,0.00040789,4]
[310087416,1704311442007,-500.0,0.00040789,4]
[310087417,1704311442016,-638.68702831,0.00040789,7]
[310087418,1704311442027,-500.0,0.00040789,7]
[310087419,1704311442036,-283.92165986,0.00040789,7]
[310087420,1704311442045,-162.630381,0.00040919,2]
[310087421,1704311442055,-151.0,0.00040919,2]
[310087422,1704311442065,-454.95723,0.00040919,2]
[310087423,1704311442074,-454.95723,0.00040919,2]
[310087424,1704311442084,-331.205838,0.00040919,2]
[310087425,1704311442094,-331.205838,0.00040919,2]
[310087426,1704311442103,-49306.38635608,0.00040919,2]
[310087427,1704311442114,-1000.0,0.00041,41]
[310087428,1704311442125,-2502.35131199,0.00041027,5]
[310087429,1704311442135,-845.8846035,0.00041096,15]
[310087430,1704311442145,-777.0,0.000415,4]
[310087431,1704311442154,-519.832385,0.00041553,120]
[310087432,1704311442164,-200.0,0.00041595,30]
[310087433,1704311442174,-200.0,0.00041595,30]
[310087434,1704311442183,-200.0,0.00041595,30]
[310087435,1704311442193,-200.0,0.00041595,30]
[310087436,1704311442203,-200.0,0.00041595,30]
[310087437,1704311442214,-200.0,0.00041595,30]
[310087438,1704311442224,-305.0,0.00041595,30]
[310087439,1704311442233,-13904.99350998,0.000418,5]
[310087440,1704311442242,-406.23224573,0.00041976,2]
[310087441,1704311442252,-547.90751537,0.00042,10]
[310087442,1704311442262,-4053.82730106,0.00042188,4]
[310087443,1704311442272,-506.21003205,0.00042191,4]
[310087444,1704311442281,-495.0,0.00042192,4]
[310087445,1704311442291,-2658.20930316,0.00042651,2]
[310087446,1704311442300,-809.59633565,0.00042651,5]
[310087447,1704311442430,-12.79674346,0.00042651,5]
[310087448,1704311442440,-1542.0310501,0.000428,34]
[310087449,1704311442512,1187.05946596,0.00019209,2]
[310087450,1704311442548,618.56145052,0.00019209,2]
[310087451,1704311442590,-5218.88434538,0.000428,34]
[310087452,1704311442603,-1239.08460452,0.000428,34]
[310087453,1704311442614,-153.0,0.00042949,2]
[310087454,1704311442627,-153.0,0.00042949,2]
[310087455,1704311442638,-153.0,0.00042949,2]
[310087456,1704311442648,-153.0,0.00042949,2]
[310087457,1704311442659,-4808.08580524,0.00043,7]
[310087458,1704311442670,-1000.0,0.00043,43]
[310087459,1704311442680,-177.0,0.00043374,2]
[310087460,1704311442692,-180.56266,0.0004352,30]
[310087461,1704311442701,-151.64663113,0.00043551,14]
[310087462,1704311442712,-151.64663113,0.00043551,14]
[310087463,1704311442725,-151.64663113,0.00043551,14]
[310087464,1704311442734,-151.64663113,0.00043551,14]
[310087465,1704311442745,-151.64663113,0.00043551,14]